[Event "45th Guernsey Open 2019"]
[Site "Vale"]
[Date "2019.10.26"]
[Round "7.10"]
[White "Hamann, Marcus"]
[Black "Strade, Arita"]
[Result "0-1"]
[ECO "B06"]
[WhiteElo "1802"]
[BlackElo "1882"]
[Annotator "NA"]
[PlyCount "122"]
[EventDate "2019.10.20"]
[EventType "swiss"]
[EventCountry "GCI"]
[SourceTitle "playchess.com"]
[Source "ChessBase"]
[SourceQuality "1"]
[TimeControl "40/6000+30:2400+30"]

1. e4 {[%emt 0:00:00]} g6 {[%emt 0:00:43]} 2. d4 {[%emt 0:00:25]} Bg7 {[%emt 0:00:21]} 3. Nc3 {[%emt 0:01:25]} c6 {[%emt 0:01:21]} 4. Nf3 {[%emt 0:02:11]} d6 {[%emt 0:01:51]} 5. Bc4 {[%emt 0:06:06]} b5 {[%emt 0:06:39]} 6. Bd3 {[%emt 0:04:32]} (6. Nxb5 $5 d5 7. Bb3 $14) 6... b4 {[%emt 0:04:01]} 7. Ne2 {[%emt 0:02:16]} Nd7 {[%emt 0:04:48]} 8. a3 {[%emt 0:07:32]} bxa3 {[%emt 0:02:42]} 9. Rxa3 {[%emt 0:00:22]} Ngf6 {[%emt 0:12:14]} 10. Bd2 {[%emt 0:02:38]} Bb7 {[%emt 0:02:47]} 11. Qa1 $11 {[%emt 0:05:14]} (11. O-O $16) 11... Qb8 {[%emt 0:04:40]} (11... c5 $1 $11) 12. Bc3 {[%emt 0:04:28]} O-O {[%emt 0:03:08]} 13. Ng3 {[%emt 0:04:32]} Ne8 {[%emt 0:03:21]} 14. O-O {[%emt 0:00:38]} Nc7 {[%emt 0:03:50]} 15. e5 {[%emt 0:15:53]} Nd5 {[%emt 0:13:51]} 16. exd6 {[%emt 0:03:29]} exd6 {[%emt 0:00:07]} 17. Bd2 {[%emt 0:01:04]} c5 {[%emt 0:02:08]} 18. c3 {[%emt 0:03:15]} N7b6 {[%emt 0:04:37]} 19. Re1 {[%emt 0:07:00]} Qc7 {[%emt 0:03:13]} 20. Bb5 {[%emt 0:08:47]} Bc6 {[%emt 0:05:33]} 21. Bxc6 {[%emt 0:03:31]} Qxc6 {[%emt 0:00:05]} 22. Ra6 {[%emt 0:07:27]} Nc7 {[%emt 0:02:10]} 23. Ra2 {[%emt 0:01:30]} c4 {[%emt 0:08:50]} 24. Qc1 {[%emt 0:01:29]} Rfe8 {[%emt 0:02:24]} 25. Rxe8+ {[%emt 0:02:36]} Qxe8 {[%emt 0:01:17]} 26. Bf4 {[%emt 0:01:53]} Qc6 {[%emt 0:01:17]} 27. Qc2 {[%emt 0:02:21]} Ne6 {[%emt 0:03:33]} 28. Bd2 {[%emt 0:03:12]} f5 {[%emt 0:04:32]} 29. Ng5 {[%emt 0:01:24]} Nf8 {[%emt 0:04:14]} 30. Ra1 {[%emt 0:01:33]} h6 {[%emt 0:01:07]} 31. Nf3 {[%emt 0:00:18]} Nd5 {[%emt 0:02:04]} 32. Qa4 {[%emt 0:01:11]} Qc7 {[%emt 0:00:55]} 33. Qa5 {[%emt 0:00:37]} Qf7 {[%emt 0:00:33]} 34. Re1 {[%emt 0:01:12]} Nd7 {[%emt 0:00:40]} 35. Bc1 {[%emt 0:01:12]} N7f6 {[%emt 0:00:39]} 36. Nd2 {[%emt 0:00:00]} Nb6 {[%emt 0:00:00]} 37. Qa3 {[%emt 0:00:22]} Bf8 {[%emt 0:00:06]} 38. Qa2 {[%emt 0:00:49]} a5 {[%emt 0:01:27]} 39. h3 {[%emt 0:01:27]} a4 {[%emt 0:00:12]} 40. Qb1 {[%emt 0:01:00]} Nfd5 {[%emt 0:00:44]} 41. Nf3 {[%emt 0:40:43]} a3 {[%emt 0:41:15]} 42. bxa3 {[%emt 0:01:01]} Na4 {[%emt 0:00:00]} 43. Ne2 {[%emt 0:00:00]} Naxc3 {[%emt 0:00:00]} 44. Qc2 {[%emt 0:00:00]} Nxe2+ {[%emt 0:00:00]} 45. Qxe2 {[%emt 0:00:00]} Nc3 {[%emt 0:00:00]} 46. Qe3 {[%emt 0:00:00]} Nb5 {[%emt 0:00:00]} 47. Bb2 {[%emt 0:00:00]} f4 {[%emt 0:00:00]} 48. Qe4 {[%emt 0:00:00]} Ra7 {[%emt 0:00:00]} 49. d5 {[%emt 0:00:00]} c3 {[%emt 0:00:00]} 50. Bc1 {[%emt 0:00:00]} g5 {[%emt 0:00:00]} 51. Nd4 {[%emt 0:00:00]} Nxd4 {[%emt 0:00:00]} 52. Qxd4 {[%emt 0:00:00]} Bg7 {[%emt 0:00:00]} 53. Qb4 {[%emt 0:00:00]} Be5 {[%emt 0:00:00]} 54. Re4 {[%emt 0:01:32]} Kg7 {[%emt 0:00:00]} 55. Qc4 {[%emt 0:02:29]} Qd7 {[%emt 0:00:00]} 56. a4 {[%emt 0:01:59]} Rc7 {[%emt 0:00:00]} 57. Qb4 {[%emt 0:00:20]} f3 {[%emt 0:00:32]} 58. Be3 {[%emt 0:01:04]} c2 {[%emt 0:02:43]} 59. Rc4 {[%emt 0:01:35]} Rb7 {[%emt 0:00:44]} 60. Bb6 {[%emt 0:00:03]} Qf5 {[%emt 0:00:44]} 61. a5 {[%emt 0:00:38]} Qd3 0-1

[Event "45th Guernsey Open 2019"]
[Site "Vale"]
[Date "2019.10.26"]
[Round "7.11"]
[White "Hall, Alan"]
[Black "Hoogakker, Peter"]
[Result "0-1"]
[ECO "B07"]
[WhiteElo "1684"]
[BlackElo "1749"]
[Annotator "NA"]
[PlyCount "78"]
[EventDate "2019.10.20"]
[EventType "swiss"]
[EventCountry "GCI"]
[SourceTitle "playchess.com"]
[Source "ChessBase"]
[SourceQuality "1"]
[TimeControl "40/6000+30:2400+30"]

1. d4 {[%emt 0:00:00]} d6 {[%emt 0:00:00]} 2. e4 {[%emt 0:00:05]} Nf6 {[%emt 0:00:00]} 3. Nc3 {[%emt 0:00:16]} Nbd7 {[%emt 0:00:00]} 4. Nf3 {[%emt 0:00:21]} e5 {[%emt 0:00:01]} 5. Bc4 {[%emt 0:02:55]} Be7 {[%emt 0:00:08]} 6. h3 {[%emt 0:01:41]} h6 {[%emt 0:00:45]} 7. O-O {[%emt 0:00:59]} c6 {[%emt 0:00:12]} 8. a4 {[%emt 0:02:41]} Qc7 {[%emt 0:00:50]} 9. Bb3 {[%emt 0:05:11]} Nf8 {[%emt 0:02:02]} 10. Be3 {[%emt 0:01:56]} g5 {[%emt 0:01:47]} 11. Nh2 {[%emt 0:10:01]} Ng6 {[%emt 0:01:51]} 12. dxe5 {[%emt 0:14:21]} dxe5 {[%emt 0:04:16]} 13. Qe2 {[%emt 0:04:28]} Nf4 {[%emt 0:01:12]} 14. Bxf4 {[%emt 0:01:12]} gxf4 {[%emt 0:01:08]} 15. Rfd1 {[%emt 0:07:05]} Rg8 {[%emt 0:02:58]} 16. Rd3 {[%emt 0:02:02]} b6 {[%emt 0:13:19]} 17. Bc4 {[%emt 0:00:46]} Rg7 {[%emt 0:03:20]} 18. Rad1 {[%emt 0:03:06]} Bc5 {[%emt 0:12:31]} 19. Na2 {[%emt 0:04:14]} a5 {[%emt 0:04:58]} 20. c3 {[%emt 0:01:34]} h5 {[%emt 0:04:05]} 21. b4 {[%emt 0:08:25]} axb4 {[%emt 0:05:17]} 22. cxb4 {[%emt 0:02:56]} Bd4 {[%emt 0:02:48]} 23. Rc1 {[%emt 0:06:40]} Bd7 {[%emt 0:10:24]} 24. Bb3 {[%emt 0:03:51]} Ke7 {[%emt 0:01:46]} 25. Kf1 {[%emt 0:08:02]} Rag8 {[%emt 0:01:34]} 26. Rxd4 {[%emt 0:05:51]} Rxg2 {[%emt 0:10:31]} 27. Rxd7+ {[%emt 0:01:44]} Qxd7 {[%emt 0:10:35]} 28. Qc4 {[%emt 0:02:47]} R8g7 {[%emt 0:00:49]} 29. Nf3 {[%emt 0:02:02]} Qxh3 {[%emt 0:01:23]} 30. Ke2 {[%emt 0:01:34]} Ng4 {[%emt 0:06:09]} 31. Rf1 {[%emt 0:00:12]} Nxf2 {[%emt 0:03:03]} 32. Qxc6 {[%emt 0:02:44]} Nxe4+ {[%emt 0:02:58]} 33. Kd3 {[%emt 0:01:23]} Rd2+ {[%emt 0:00:50]} 34. Kxe4 {[%emt 0:00:36]} f5+ {[%emt 0:01:38]} 35. Kxe5 {[%emt 0:00:23]} Re2+ {[%emt 0:00:44]} 36. Kd5 {[%emt 0:01:28]} Qxf1 {[%emt 0:00:50]} 37. Qd6+ {[%emt 0:00:59]} Ke8 {[%emt 0:00:24]} 38. Qc6+ {[%emt 0:00:51]} Rd7+ {[%emt 0:00:24]} 39. Kc4 {[%emt 0:01:09]} Rc2# {[%emt 0:00:30] Kd4} 0-1